fUST/lending_fUST_20250528
["ID","MTS","AMOUNT","RATE_DAILY","PERIOD"]
[362686258,1748397050695,-430.0,0.00020821,2]
[362686260,1748397050704,-3523.1,0.00020821,2]
[362686262,1748397050714,-430.0,0.00020821,2]
[362686264,1748397050723,-430.0,0.00020821,2]
[362686266,1748397050732,-278.73686942,0.00020821,2]
[362686268,1748397050742,-643.33,0.00020821,2]
[362686270,1748397050751,-193.65212174,0.00020821,2]
[362686272,1748397050760,-430.0,0.00020821,2]
[362686274,1748397050770,-863.47,0.00020821,2]
[362686276,1748397050779,-430.0,0.00020821,2]
[362686278,1748397050788,-430.0,0.00020821,2]
[362686280,1748397050798,-430.0,0.00020821,2]
[362686282,1748397050807,-430.0,0.00020821,2]
[362686284,1748397050817,-430.0,0.00020821,2]
[362686286,1748397050826,-442.69,0.00020821,2]
[362686288,1748397050835,-581.12,0.00020821,2]
[362686290,1748397050844,-1389.69,0.00020821,2]
[362686292,1748397050853,-2359.7,0.00020821,2]
[362686294,1748397050862,-685.14,0.00020821,2]
[362686296,1748397050871,-1968.12,0.00020821,2]
[362686298,1748397050880,-552.13967656,0.00020821,2]
[362686300,1748397050890,-3368.07,0.00020821,2]
[362686302,1748397050899,-474.81418434,0.00020934,4]
[362686304,1748397050910,-197.948,0.00020949,2]
[362686306,1748397050919,-3809.31867322,0.00021,7]
[362686307,1748397050928,-200.28999415,0.00021,2]
[362686309,1748397050937,-812.54,0.00021063,2]
[362686311,1748397050947,-430.0,0.00021095,2]
[362686313,1748397050956,-430.0,0.00021095,2]
[362686315,1748397050967,-431.03,0.00021095,2]
[362686317,1748397050976,-430.0,0.00021095,2]
[362686319,1748397050985,-3523.1,0.00021095,2]
[362686321,1748397050994,-430.0,0.00021095,2]
[362686323,1748397051003,-501.11508447,0.00021095,2]
[362686325,1748397051012,-643.33,0.00021095,2]
[362686327,1748397051022,-430.0,0.00021095,2]
[362686329,1748397051031,-863.47,0.00021095,2]
[362686331,1748397051040,-430.0,0.00021095,2]
[362686333,1748397051050,-430.0,0.00021095,2]
[362686335,1748397051059,-430.0,0.00021095,2]
[362686337,1748397051068,-211.80650476,0.00021095,2]
[362686349,1748397051172,-430.0,0.00021095,2]
[362686350,1748397051182,-442.69,0.00021095,2]
[362686352,1748397051192,-581.12,0.00021095,2]
[362686354,1748397051202,-1389.69,0.00021095,2]
[362686356,1748397051212,-2359.7,0.00021095,2]
[362686358,1748397051222,-685.14,0.00021095,2]
[362686360,1748397051231,-1968.12,0.00021095,2]
[362686362,1748397051240,-3368.07,0.00021095,2]
[362686364,1748397051249,-474.81418434,0.00021107,4]
[362686366,1748397051258,-600.0,0.00021164,2]
[362686368,1748397051268,-474.81418434,0.00021279,5]
[362686370,1748397051277,-549.90077116,0.00021369,2]
[362686371,1748397051285,-430.0,0.00021369,2]
[362686372,1748397051294,-431.03,0.00021369,2]
[362686373,1748397051305,-430.0,0.00021369,2]
[362686374,1748397051315,-3523.1,0.00021369,2]
[362686375,1748397051323,-430.0,0.00021369,2]
[362686376,1748397051332,-643.33,0.00021369,2]
[362686377,1748397051341,-430.0,0.00021369,2]
[362686378,1748397051350,-863.47,0.00021369,2]
[362686379,1748397051366,-430.0,0.00021369,2]
[362686380,1748397051375,-430.0,0.00021369,2]
[362686381,1748397051384,-430.0,0.00021369,2]
[362686382,1748397051393,-430.0,0.00021369,2]
[362686383,1748397051403,-442.69,0.00021369,2]
[362686384,1748397051412,-581.12,0.00021369,2]
[362686385,1748397051421,-1389.69,0.00021369,2]
[362686386,1748397051430,-2359.7,0.00021369,2]
[362686387,1748397051439,-685.14,0.00021369,2]
[362686388,1748397051447,-1968.12,0.00021369,2]
[362686389,1748397051457,-3368.07,0.00021369,2]
[362686390,1748397051466,-195.93916452,0.00021389,2]
[362686391,1748397051474,-474.81418434,0.00021452,5]
[362686392,1748397051483,-500.95916697,0.0002155,2]
[362686393,1748397051492,-500.0,0.0002155,2]
[362686394,1748397051501,-474.81418434,0.00021624,5]
[362686395,1748397051510,-430.0,0.00021643,2]
[362686396,1748397051519,-431.03,0.00021643,2]
[362686397,1748397051528,-430.0,0.00021643,2]
[362686398,1748397051537,-3523.1,0.00021643,2]
[362686399,1748397051546,-430.0,0.00021643,2]
[362686400,1748397051555,-643.33,0.00021643,2]
[362686401,1748397051563,-430.0,0.00021643,2]
[362686402,1748397051572,-863.47,0.00021643,2]
[362686403,1748397051581,-430.0,0.00021643,2]
[362686404,1748397051590,-430.0,0.00021643,2]
[362686405,1748397051599,-430.0,0.00021643,2]
[362686406,1748397051607,-430.0,0.00021643,2]
[362686407,1748397051617,-442.69,0.00021643,2]
[362686408,1748397051626,-581.12,0.00021643,2]
[362686409,1748397051635,-1389.69,0.00021643,2]
[362686410,1748397051643,-2359.7,0.00021643,2]
[362686411,1748397051652,-685.14,0.00021643,2]
[362686412,1748397051662,-1968.12,0.00021643,2]
[362686413,1748397051671,-3368.07,0.00021643,2]
[362686414,1748397051680,-474.81418434,0.00021797,6]
[362686415,1748397051689,-20010.31285458,0.000218,3]
[362686416,1748397051699,-215.0738,0.00021811,2]
[362686417,1748397051707,-221.70557183,0.00021825,2]
[362686418,1748397051717,-500.0,0.00021917,2]
[362686419,1748397051725,-430.0,0.00021917,2]
[362686420,1748397051734,-431.03,0.00021917,2]
[362686421,1748397051743,-430.0,0.00021917,2]
[362686422,1748397051752,-3523.1,0.00021917,2]
[362686423,1748397051761,-547.52346408,0.00021917,2]
[362686424,1748397051770,-643.33,0.00021917,2]
[362686425,1748397051779,-430.0,0.00021917,2]
[362686426,1748397051787,-863.47,0.00021917,2]
[362686427,1748397051797,-430.0,0.00021917,2]
[362686428,1748397051806,-430.0,0.00021917,2]
[362686429,1748397051815,-430.0,0.00021917,2]
[362686430,1748397051824,-430.0,0.00021917,2]
[362686431,1748397051833,-442.69,0.00021917,2]
[362686432,1748397051842,-581.12,0.00021917,2]
[362686433,1748397051851,-1389.69,0.00021917,2]
[362686434,1748397051860,-2359.7,0.00021917,2]
[362686435,1748397051870,-685.14,0.00021917,2]
[362686436,1748397051879,-1968.12,0.00021917,2]
[362686437,1748397051889,-3368.07,0.00021917,2]
[362686438,1748397051899,-153.0,0.00021918,2]
[362686439,1748397051908,-153.0,0.00021918,2]
[362686440,1748397051917,-153.0,0.00021918,2]
[362686441,1748397051927,-153.0,0.00021918,2]
[362686442,1748397051937,-153.0,0.00021918,2]
[362686443,1748397051946,-153.0,0.00021918,2]
[362686444,1748397051955,-153.0,0.00021918,2]
[362686445,1748397051964,-153.0,0.00021918,2]
[362686446,1748397051974,-153.0,0.00021918,2]
[362686447,1748397051983,-153.0,0.00021918,2]
[362686449,1748397051992,-153.0,0.00021918,2]
[362686451,1748397052002,-153.0,0.00021918,2]
[362686453,1748397052012,-153.0,0.00021918,2]
[362686455,1748397052021,-153.0,0.00021918,2]
[362686456,1748397052031,-153.0,0.00021918,2]
[362686457,1748397052041,-153.0,0.00021918,2]
[362686458,1748397052051,-153.0,0.00021918,2]
[362686459,1748397052060,-153.0,0.00021918,2]
[362686460,1748397052070,-153.0,0.00021918,2]
[362686461,1748397052079,-153.0,0.00021918,2]
[362686462,1748397052089,-153.0,0.00021918,2]
[362686463,1748397052099,-153.0,0.00021918,2]
[362686464,1748397052108,-153.0,0.00021918,2]
[362686465,1748397052118,-153.0,0.00021918,2]
[362686466,1748397052127,-153.0,0.00021918,2]
[362686467,1748397052136,-153.0,0.00021918,2]
[362686468,1748397052146,-153.0,0.00021918,2]
[362686469,1748397052155,-153.0,0.00021918,2]
[362686470,1748397052164,-153.0,0.00021918,2]
[362686471,1748397052174,-153.0,0.00021918,2]
[362686472,1748397052183,-153.0,0.00021918,2]
[362686473,1748397052193,-153.0,0.00021918,2]
[362686474,1748397052203,-153.0,0.00021918,2]
[362686475,1748397052213,-153.0,0.00021918,2]
[362686476,1748397052223,-153.0,0.00021918,2]
[362686477,1748397052233,-153.0,0.00021918,2]
[362686478,1748397052242,-153.0,0.00021918,2]
[362686479,1748397052251,-153.0,0.00021918,2]
[362686480,1748397052261,-153.0,0.00021918,2]
[362686481,1748397052271,-153.0,0.00021918,2]
[362686482,1748397052280,-153.0,0.00021918,2]
[362686483,1748397052289,-153.0,0.00021918,2]
[362686484,1748397052299,-153.0,0.00021918,2]
[362686485,1748397052308,-153.0,0.00021918,2]
[362686486,1748397052318,-153.0,0.00021918,2]
[362686487,1748397052327,-153.0,0.00021918,2]
[362686488,1748397052336,-153.0,0.00021918,2]
[362686489,1748397052346,-153.0,0.00021918,2]
[362686490,1748397052357,-153.0,0.00021918,2]
[362686491,1748397052367,-153.0,0.00021918,2]
[362686492,1748397052376,-153.0,0.00021918,2]
[362686493,1748397052385,-153.0,0.00021918,2]
[362686494,1748397052394,-153.0,0.00021918,2]
[362686495,1748397052403,-153.0,0.00021918,2]
[362686496,1748397052414,-153.0,0.00021918,2]
[362686497,1748397052423,-153.0,0.00021918,2]
[362686498,1748397052433,-153.0,0.00021918,2]
[362686499,1748397052448,-262.19315008,0.00021918,2]
[362686500,1748397052458,-153.0,0.00021918,2]
[362686501,1748397052467,-500.0,0.00021925,2]
[362686502,1748397052476,-500.0,0.00021931,2]
[362686503,1748397052485,-500.0,0.00021931,2]
[362686504,1748397052494,-600.0,0.00021931,2]
[362686505,1748397052503,-502.30141213,0.00021931,2]
[362686506,1748397052512,-500.0,0.00021931,2]
[362686507,1748397052521,-474.81418434,0.00021969,6]
[362686508,1748397052531,-156.0,0.00022,2]
[362686509,1748397052540,-1625.08,0.00022066,2]
[362686510,1748397052550,-501.8597494,0.00022098,2]
[362686511,1748397052560,-469.07967219,0.000221,2]
[362686512,1748397052569,-474.81418434,0.00022141,6]
[362686513,1748397052579,-151.0,0.00022191,7]
[362686515,1748397052589,-153.075157,0.00022191,7]
[362686517,1748397052598,-430.0,0.00022191,2]
[362686519,1748397052607,-431.03,0.00022191,2]
[362686521,1748397052616,-430.0,0.00022191,2]
[362686523,1748397052626,-3523.1,0.00022191,2]
[362686525,1748397052636,-643.33,0.00022191,2]
[362686527,1748397052647,-430.0,0.00022191,2]
[362686529,1748397052656,-863.47,0.00022191,2]
[362686531,1748397052666,-430.0,0.00022191,2]
[362686533,1748397052675,-430.0,0.00022191,2]
[362686535,1748397052684,-430.0,0.00022191,2]
[362686537,1748397052693,-430.0,0.00022191,2]
[362686539,1748397052703,-442.69,0.00022191,2]
[362686542,1748397052713,-581.12,0.00022191,2]
[362686544,1748397052722,-1389.69,0.00022191,2]
[362686546,1748397052732,-2359.7,0.00022191,2]
[362686548,1748397052741,-685.14,0.00022191,2]
[362686549,1748397052750,-1968.12,0.00022191,2]
[362686551,1748397052759,-3368.07,0.00022191,2]
[362686554,1748397052769,-321.65886678,0.00022233,2]
[362686556,1748397052778,-600.0,0.0002226,2]
[362686558,1748397052787,-151.0,0.00022301,7]
[362686560,1748397052798,-854.338517,0.00022301,2]
[362686562,1748397052808,-854.338517,0.00022301,2]
[362686564,1748397052818,-474.81418434,0.00022314,7]
[362686566,1748397052828,-500.0,0.00022465,2]
[362686567,1748397052837,-151.96135,0.00022465,7]
[362686570,1748397052846,-430.0,0.00022465,2]
[362686572,1748397052855,-431.03,0.00022465,2]
[362686573,1748397052864,-430.0,0.00022465,2]
[362686575,1748397052874,-3523.1,0.00022465,2]
[362686578,1748397052884,-643.33,0.00022465,2]
[362686580,1748397052895,-430.0,0.00022465,2]
[362686582,1748397052904,-863.47,0.00022465,2]
[362686584,1748397052914,-430.0,0.00022465,2]
[362686586,1748397052923,-430.0,0.00022465,2]
[362686588,1748397052932,-430.0,0.00022465,2]
[362686590,1748397052942,-430.0,0.00022465,2]
[362686592,1748397052951,-442.69,0.00022465,2]
[362686594,1748397052960,-581.12,0.00022465,2]
[362686596,1748397052969,-1389.69,0.00022465,2]
[362686598,1748397052978,-685.14,0.00022465,2]
[362686599,1748397052987,-2359.7,0.00022465,2]
[362686601,1748397052997,-1968.12,0.00022465,2]
[362686604,1748397053006,-3368.07,0.00022465,2]
[362686605,1748397053015,-1000.0,0.00022473,2]
[362686608,1748397053025,-1000.0,0.00022479,2]
[362686610,1748397053035,-1000.0,0.00022479,2]
[362686612,1748397053043,-1200.0,0.00022479,2]
[362686614,1748397053054,-501.25813154,0.00022479,2]
[362686616,1748397053063,-474.81418434,0.00022486,7]
[362686618,1748397053072,-2241.957,0.00022492,2]
[362686619,1748397053081,-710.168,0.00022492,2]
[362686622,1748397053092,-405.0,0.00022492,2]
[362686624,1748397053102,-1765.42,0.000225,2]
[362686626,1748397053113,-929.0,0.000225,2]
[362686628,1748397053122,-474.81418434,0.00022659,7]
[362686630,1748397053132,-1263.832131,0.00022739,7]
[362686631,1748397053142,-1263.832131,0.00022739,7]
[362686633,1748397053151,-430.0,0.00022739,2]
[362686635,1748397053161,-431.03,0.00022739,2]
[362686637,1748397053170,-430.0,0.00022739,2]
[362686640,1748397053181,-1803.52428933,0.00022739,2]
[362687719,1748397169429,-235.0354552,0.00018986,2]
[362687720,1748397244225,-163.14407918,0.00018986,2]
[362687724,1748397332021,248.52078,0.00013699,2]
[362687726,1748397583904,72450.0,0.000246,120]
[362687812,1748398113782,-183.89531806,0.00018698,2]
[362687813,1748398113807,-87.59709537,0.00019078,2]
[362687814,1748398117066,-145.3581901,0.00019078,2]
[362687815,1748398117099,-189.68195928,0.00019173,2]
[362687816,1748398118648,-311.86044664,0.00019173,2]
[362687817,1748398118672,-41.27223117,0.00019173,2]
[362687818,1748398120230,-247.00956722,0.00019173,2]
[362687819,1748398124544,-11.95141511,0.00019173,2]
[362687820,1748398124569,-145.53220627,0.00019173,2]
[362687821,1748398127518,-236.55050028,0.00019173,2]
[362687822,1748398131158,-120.25793574,0.00019173,2]
[362687823,1748398131180,-239.94808116,0.00019173,2]
[362687824,1748398133326,-208.36463291,0.00019173,2]
[362687825,1748398135972,-75.62160125,0.00019173,2]
[362687826,1748398135994,-116.62762766,0.00019173,2]
[362687828,1748398140814,-164.82757789,0.00019173,2]
[362687829,1748398142334,-159.02402088,0.00019173,2]
[362687836,1748398145491,-179.90955412,0.00018981,2]
[362687837,1748398147065,-160.306519,0.00018981,2]
[362687838,1748398149514,-16.86073368,0.00018981,2]
[362687839,1748398149541,-143.44578532,0.00019172,2]
[362687840,1748398151043,-154.44623644,0.00019172,2]
[362687841,1748398152579,-2.10797824,0.00019172,2]
[362687842,1748398152600,-62.0455664,0.00019173,2]
[362687843,1748398152622,-207.70455589,0.00019173,2]
[362687844,1748398156991,-262.29171518,0.00019173,2]
[362687845,1748398160949,-672.55969954,0.00018981,2]
[362687846,1748398165755,-413.29125043,0.00018981,2]
[362687847,1748398165780,-39.80967627,0.00019173,2]
[362687848,1748398165803,-513.84220355,0.00019173,2]
[362687849,1748398165826,-146.05717021,0.00019173,2]
[362687850,1748398169058,-109.58387371,0.00019173,2]
[362687851,1748398169081,-154.48612629,0.00019173,2]
[362687861,1748398173063,-10.94694236,0.00019173,2]
[362687862,1748398173087,-171.88633373,0.00019173,2]
[362687863,1748398174578,-167.34187856,0.00019173,2]
[362687864,1748398176624,-160.897277,0.00019173,2]
[362687865,1748398181304,-155.30352364,0.00019078,2]
[362687866,1748398181327,-9.55058588,0.00019173,2]
[362687867,1748398181349,-2.42652248,0.00019173,2]
[362687868,1748398182870,-167.347726,0.00019173,2]
[362687869,1748398184421,-155.60108244,0.00019173,2]
[362687870,1748398189847,-158.96908279,0.00018981,2]
[362687871,1748398192037,-169.047256,0.00018981,2]
[362687872,1748398197656,-167.50929621,0.00018981,2]
[362687873,1748398197680,-40.84096131,0.00019078,2]
[362687874,1748398206123,-200.0,0.00018887,2]
[362687876,1748398209306,-162.77430179,0.00018887,2]
[362687877,1748398212683,-120.84311944,0.00018887,2]
[362687878,1748398212709,-31.15688056,0.00019078,2]
[362687879,1748398214206,-228.79873596,0.00019078,2]
[362687880,1748398214230,-13.00999187,0.00019078,2]
[362687881,1748398218046,-162.22875713,0.00019078,2]
[362687882,1748398221394,-200.06862657,0.00018887,2]
[362687883,1748398223916,-328.72610313,0.00018887,2]
[362687884,1748398225490,-380.70569851,0.00018887,2]
[362687885,1748398229597,-55.43285893,0.00018887,2]
[362687886,1748398229620,-138.10569712,0.00019078,2]
[362687888,1748398231099,-190.95750936,0.00019078,2]
[362687889,1748398231120,-117.08095172,0.00019173,2]
[362687946,1748398232351,-63.38240726,0.00019173,2]
[362687948,1748398232361,-502.16961598,0.00019173,2]
[362687950,1748398232370,-300.0,0.00019176,2]
[362687952,1748398232379,-300.0,0.00019176,2]
[362687954,1748398232388,-300.0,0.00019176,2]
[362687956,1748398232398,-300.0,0.00019176,2]
[362687958,1748398232409,-1200.0,0.00019176,2]
[362687960,1748398232419,-500.0,0.00019177,2]
[362687962,1748398232430,-500.0,0.00019177,2]
[362687965,1748398232439,-231.30373025,0.00019177,2]
[362687968,1748398232449,-393.98654459,0.00019177,2]
[362687970,1748398232458,-500.0,0.00019177,2]
[362687972,1748398232468,-500.0,0.00019177,2]
[362687975,1748398232477,-500.0,0.00019177,2]
[362687978,1748398232486,-321.94847847,0.00019177,2]
[362687980,1748398232496,-454.43810814,0.00019178,2]
[362687982,1748398232506,-436.60823718,0.00019178,2]
[362687984,1748398232516,-438.10184778,0.00019178,2]
[362687986,1748398232526,-409.28934417,0.00019178,2]
[362687988,1748398232535,-404.90394963,0.00019178,2]
[362687990,1748398232545,-435.73514699,0.00019178,2]
[362687993,1748398232555,-457.87080978,0.00019178,2]
[362687995,1748398232566,-445.43349875,0.00019178,2]
[362687997,1748398232577,-434.31965038,0.00019178,2]
[362687998,1748398232587,-401.04604198,0.00019178,2]
[362688000,1748398232597,-404.5179224,0.00019178,2]
[362688002,1748398232607,-410.70462059,0.00019178,2]
[362688004,1748398232618,-403.68888849,0.00019178,2]
[362688006,1748398232628,-433.16275702,0.00019178,2]
[362688008,1748398232638,-440.69434476,0.00019178,2]
[362688011,1748398232648,-476.94468156,0.00019178,2]
[362688013,1748398232658,-436.24425923,0.00019178,2]
[362688015,1748398232668,-439.01215188,0.00019178,2]
[362688017,1748398232678,-440.10798953,0.00019178,2]
[362688019,1748398232687,-445.37335108,0.00019178,2]
[362688021,1748398232696,-429.69710783,0.00019178,2]
[362688023,1748398232706,-430.0,0.00019178,2]
[362688025,1748398232716,-221.62515321,0.00019178,2]
[362688027,1748398232725,-436.40297057,0.00019178,2]
[362688028,1748398232734,-441.5412255,0.00019178,2]
[362688030,1748398232743,-430.0,0.00019178,2]
[362688032,1748398232753,-439.38526898,0.00019178,2]
[362688034,1748398232762,-438.23601229,0.00019178,2]
[362688035,1748398232772,-1011.91267539,0.00019178,2]
[362688036,1748398232782,-412.40814296,0.00019178,2]
[362688038,1748398232791,-403.24618801,0.00019178,2]
[362688040,1748398232800,-411.54264837,0.00019178,2]
[362688042,1748398232810,-401.17278935,0.00019178,2]
[362688044,1748398232819,-438.89407559,0.00019178,2]
[362688046,1748398232829,-404.9948268,0.00019178,2]
[362688048,1748398232839,-374.67201815,0.00019178,2]
[362688050,1748398232850,-433.86557362,0.00019178,2]
[362688052,1748398232860,-434.57579027,0.00019178,2]
[362688054,1748398232870,-434.45346666,0.00019178,2]
[362688055,1748398232882,-436.52219246,0.00019178,2]
[362688058,1748398232892,-401.87987369,0.00019178,2]
[362688059,1748398232902,-402.10549879,0.00019178,2]
[362688060,1748398232912,-440.15997748,0.00019178,2]
[362688061,1748398232923,-401.25800824,0.00019178,2]
[362688062,1748398232933,-447.8975761,0.00019178,2]
[362688063,1748398232943,-437.25979612,0.00019178,2]
[362688064,1748398232953,-500.0,0.00019178,2]
[362688065,1748398232963,-550.66927161,0.00019178,2]
[362688066,1748398232973,-435.77985755,0.00019178,2]
[362688067,1748398232983,-458.67074317,0.00019178,2]
[362688068,1748398232993,-437.57899069,0.00019178,2]
[362688069,1748398233002,-426.71157384,0.00019178,2]
[362688070,1748398233012,-389.16635128,0.00019178,2]
[362688071,1748398233022,-408.82957007,0.00019178,2]
[362688072,1748398233032,-437.9212305,0.00019178,2]
[362688073,1748398233043,-468.87322448,0.00019178,2]
[362688074,1748398233053,-442.15228521,0.00019178,2]
[362688075,1748398233063,-436.83095132,0.00019178,2]
[362688076,1748398233073,-432.81345013,0.00019178,2]
[362688077,1748398233084,-168.32808073,0.00019178,2]
[362688078,1748398233097,-433.48899906,0.00019178,2]
[362688079,1748398233107,-430.0,0.00019178,2]
[362688080,1748398233117,-435.6249096,0.00019178,2]
[362688081,1748398233127,-434.57867436,0.00019178,2]
[362688082,1748398233137,-436.91233808,0.00019178,2]
[362688083,1748398233147,-431.89081964,0.00019178,2]
[362688085,1748398233157,-430.0,0.00019178,2]
[362688087,1748398233167,-440.84653916,0.00019178,2]
[362688089,1748398233177,-437.60181683,0.00019178,2]
[362688091,1748398233187,-478.34345617,0.00019178,2]
[362688093,1748398233198,-439.94047747,0.00019178,2]
[362688095,1748398233208,-430.0,0.00019178,2]
[362688097,1748398233220,-364.49439676,0.00019178,2]
[362688099,1748398233231,-430.0,0.00019178,2]
[362688101,1748398233241,-434.17703409,0.00019178,2]
[362688104,1748398233253,-461.38712824,0.00019178,2]
[362688105,1748398233263,-436.73186742,0.00019178,2]
[362688108,1748398233272,-453.98773085,0.00019178,2]
[362688109,1748398233283,-430.0,0.00019178,2]
[362688111,1748398233292,-451.52879147,0.00019178,2]
[362688113,1748398233301,-430.0,0.00019178,2]
[362688116,1748398233311,-430.0,0.00019178,2]
[362688117,1748398233321,-221.8253078,0.00019178,2]
[362688119,1748398233331,-444.11546178,0.00019178,2]
[362688121,1748398233341,-435.41676401,0.00019178,2]
[362688123,1748398233351,-430.0,0.00019178,2]
[362688125,1748398233361,-430.0,0.00019178,2]
[362688128,1748398233372,-430.0,0.00019178,2]
[362688129,1748398233381,-443.0829876,0.00019178,2]
[362688132,1748398233391,-439.71861663,0.00019178,2]
[362688134,1748398233402,-430.0,0.00019178,2]
[362688136,1748398233412,-430.0,0.00019178,2]
[362688138,1748398233423,-445.59032737,0.00019178,2]
[362688140,1748398233433,-430.0,0.00019178,2]
[362688142,1748398233443,-442.82929489,0.00019178,2]
[362688144,1748398233452,-500.0,0.00019178,2]
[362688146,1748398233463,-500.0,0.00019178,2]
[362688148,1748398233473,-500.0,0.00019178,2]
[362688149,1748398233483,-500.0,0.00019178,2]
[362688151,1748398233494,-500.0,0.00019178,2]
[362688153,1748398233503,-539.95539458,0.00019178,2]
[362688155,1748398233513,-500.0,0.00019178,2]
[362688157,1748398233524,-500.0,0.00019178,2]
[362688159,1748398233534,-500.0,0.00019178,2]
[362688172,1748398233656,-430.0,0.00019178,2]
[362688174,1748398233667,-430.0,0.00019178,2]
[362688176,1748398233677,-430.0,0.00019178,2]
[362688178,1748398233687,-430.0,0.00019178,2]
[362688180,1748398233697,-300.0,0.00019178,2]
[362688182,1748398233707,-203.36523325,0.00019178,2]
[362688184,1748398233717,-430.0,0.00019178,2]
[362688186,1748398233728,-430.0,0.00019178,2]
[362688188,1748398233738,-430.0,0.00019178,2]
[362688190,1748398233748,-430.0,0.00019178,2]
[362688192,1748398233758,-430.0,0.00019178,2]
[362688194,1748398233768,-445.22733109,0.00019178,2]
[362688196,1748398233777,-430.0,0.00019178,2]
[362688198,1748398233787,-430.0,0.00019178,2]
[362688200,1748398233798,-430.0,0.00019178,2]
[362688203,1748398233809,-430.0,0.00019178,2]
[362688204,1748398233821,-430.0,0.00019178,2]
[362688206,1748398233831,-430.0,0.00019178,2]
[362688208,1748398233842,-430.0,0.00019178,2]
[362688210,1748398233851,-430.0,0.00019178,2]
[362688212,1748398233861,-400.96581778,0.00019178,2]
[362688214,1748398233874,-430.0,0.00019178,2]
[362688216,1748398233883,-430.0,0.00019178,2]
[362688218,1748398233892,-430.0,0.00019178,2]
[362688220,1748398233902,-430.0,0.00019178,2]
[362688222,1748398233912,-430.0,0.00019178,2]
[362688224,1748398233922,-430.0,0.00019178,2]
[362688226,1748398233932,-470.0,0.00019178,2]
[362688228,1748398233951,-430.0,0.00019178,2]
[362688230,1748398233971,-525.31021915,0.00019178,2]
[362688232,1748398233982,-498.99301114,0.00019178,2]
[362688234,1748398233991,-430.0,0.00019178,2]
[362688236,1748398234002,-430.0,0.00019178,2]
[362688238,1748398234012,-430.0,0.00019178,2]
[362688240,1748398234022,-430.0,0.00019178,2]
[362688242,1748398234032,-430.0,0.00019178,2]
[362688244,1748398234041,-430.0,0.00019178,2]
[362688246,1748398234051,-430.0,0.00019178,2]
[362688248,1748398234061,-430.0,0.00019178,2]
[362688250,1748398234071,-430.0,0.00019178,2]
[362688252,1748398234081,-430.0,0.00019178,2]
[362688254,1748398234091,-430.0,0.00019178,2]
[362688256,1748398234102,-430.0,0.00019178,2]
[362688258,1748398234111,-430.0,0.00019178,2]
[362688260,1748398234120,-430.0,0.00019178,2]
[362688262,1748398234130,-522.29336792,0.00019178,2]
[362688264,1748398234139,-430.0,0.00019178,2]
[362688266,1748398234149,-430.0,0.00019178,2]
[362688268,1748398234158,-430.0,0.00019178,2]
[362688270,1748398234168,-430.0,0.00019178,2]
[362688272,1748398234177,-442.89633993,0.00019178,2]
[362688274,1748398234188,-430.0,0.00019178,2]
[362688276,1748398234198,-430.0,0.00019178,2]
[362688278,1748398234208,-430.0,0.00019178,2]
[362688280,1748398234218,-371.1941447,0.00019178,2]
[362688282,1748398234228,-430.0,0.00019178,2]
[362688284,1748398234238,-430.0,0.00019178,2]
[362688286,1748398234248,-430.0,0.00019178,2]
[362688288,1748398234257,-430.0,0.00019178,2]
[362688290,1748398234267,-430.0,0.00019178,2]
[362688292,1748398234276,-430.0,0.00019178,2]
[362688294,1748398234285,-430.0,0.00019178,2]